fUSD/lending_fUSD_20260523
["ID","MTS","AMOUNT","RATE_DAILY","PERIOD"]
[422858585,1779534651000,-500.0,0.00010027,2]
[422858587,1779534651000,-1350.0,0.00010138,5]
[422858586,1779534651000,-4000.0,0.00010027,2]
[422858588,1779534651000,-312.22,0.00010143,2]
[422858590,1779534651000,-219.42,0.00010171,2]
[422858589,1779534651000,-350.0,0.00010159,2]
[422858592,1779534651000,-500.0,0.00010253,2]
[422858591,1779534651000,-350.0,0.00010178,2]
[422858594,1779534651000,-152.21,0.00010274,2]
[422858593,1779534651000,-2000.0,0.00010274,2]
[422858596,1779534651000,-3642.84594244,0.000103,2]
[422858537,1779534651000,-150.0,9.699e-05,2]
[422858570,1779534651000,-1000.0,0.0001,2]
[422858567,1779534651000,-1000.0,0.0001,2]
[422858581,1779534651000,-484.75955496,0.0001,2]
[422858565,1779534651000,-1000.0,0.0001,2]
[422858535,1779534651000,-151.0,9.67e-05,2]
[422858568,1779534651000,-1000.0,0.0001,2]
[422858540,1779534651000,-150.0,9.753e-05,2]
[422858539,1779534651000,-150.0,9.717e-05,2]
[422858541,1779534651000,-150.0,9.79e-05,2]
[422858542,1779534651000,-150.0,9.826e-05,2]
[422858544,1779534651000,-150.0,9.863e-05,2]
[422858543,1779534651000,-24690.0,9.863e-05,2]
[422858545,1779534651000,-220.58459687,9.863e-05,2]
[422858549,1779534651000,-263.26296792,9.863e-05,2]
[422858547,1779534651000,-150.0,9.863e-05,2]
[422858550,1779534651000,-150.64808401,9.863e-05,2]
[422858548,1779534651000,-150.0,9.863e-05,2]
[422858551,1779534651000,-150.0,9.863e-05,2]
[422858546,1779534651000,-199.11874836,9.863e-05,2]
[422858553,1779534651000,-150.0,9.863e-05,2]
[422858566,1779534651000,-1000.0,0.0001,2]
[422858552,1779534651000,-228.2432295,9.863e-05,2]
[422858561,1779534651000,-350.0,9.957e-05,2]
[422858557,1779534651000,-1762.61,9.879e-05,2]
[422858564,1779534651000,-1000.0,0.0001,2]
[422858562,1779534651000,-500.0,9.979e-05,2]
[422858559,1779534651000,-154.47727069,9.903e-05,2]
[422858563,1779534651000,-163.390817,9.997e-05,2]
[422858560,1779534651000,-32241.63068368,9.91e-05,2]
[422858556,1779534651000,-4230.81,9.879e-05,2]
[422858554,1779534651000,-151.0,9.876e-05,2]
[422858555,1779534651000,-151.0,9.879e-05,2]
[422858558,1779534651000,-86119.95,9.879e-05,2]
[422858640,1779534652000,-2616.400319,0.00010849,2]
[422858639,1779534652000,-2616.400311,0.00010849,2]
[422858638,1779534652000,-2616.400311,0.00010849,2]
[422858634,1779534652000,-2616.400311,0.00010849,2]
[422858631,1779534652000,-2616.400311,0.00010849,2]
[422858632,1779534652000,-2616.400311,0.00010849,2]
[422858635,1779534652000,-2616.400311,0.00010849,2]
[422858633,1779534652000,-2616.400311,0.00010849,2]
[422858629,1779534652000,-2616.400311,0.00010849,2]
[422858637,1779534652000,-2616.400311,0.00010849,2]
[422858641,1779534652000,-24112.0,0.00010865,2]
[422858636,1779534652000,-2616.400311,0.00010849,2]
[422858643,1779534652000,-3652.83738871,0.000109,2]
[422858656,1779534652000,-152.21,0.00010959,2]
[422858645,1779534652000,-3652.83738864,0.000109,2]
[422858646,1779534652000,-588.80980333,0.00010926,2]
[422858644,1779534652000,-3652.83738864,0.000109,2]
[422858648,1779534652000,-500.0,0.00010958,3]
[422858647,1779534652000,-500.0,0.00010958,2]
[422858650,1779534652000,-200.0,0.00010959,2]
[422858649,1779534652000,-500.0,0.00010958,4]
[422858652,1779534652000,-200.0,0.00010959,2]
[422858651,1779534652000,-200.0,0.00010959,2]
[422858654,1779534652000,-150.0,0.00010959,2]
[422858653,1779534652000,-150.0,0.00010959,2]
[422858655,1779534652000,-151.0,0.00010959,2]
[422858630,1779534652000,-2616.400311,0.00010849,2]
[422858642,1779534652000,-152.0,0.0001089,4]
[422858628,1779534652000,-2616.400311,0.00010849,2]
[422858599,1779534652000,-350.0,0.00010464,2]
[422858627,1779534652000,-2616.400311,0.00010849,2]
[422858598,1779534652000,-3292.0,0.00010447,2]
[422858659,1779534652000,-246.83671021,0.00011,5]
[422858597,1779534652000,-823.0,0.00010447,2]
[422858600,1779534652000,-9999.99,0.00010475,2]
[422858602,1779534652000,-3744.9,0.00010475,2]
[422858601,1779534652000,-1196.68,0.00010475,2]
[422858604,1779534652000,-10600.71,0.00010475,2]
[422858603,1779534652000,-6231.56,0.00010475,2]
[422858606,1779534652000,-23761.77,0.00010475,2]
[422858605,1779534652000,-9999.99,0.00010475,2]
[422858607,1779534652000,-1425.91,0.00010475,2]
[422858608,1779534652000,-150.99,0.00010475,2]
[422858609,1779534652000,-520.81,0.00010475,2]
[422858610,1779534652000,-16257.74,0.00010475,2]
[422858611,1779534652000,-3014.92,0.00010475,2]
[422858612,1779534652000,-299.99,0.00010475,2]
[422858613,1779534652000,-4999.99,0.00010475,2]
[422858614,1779534652000,-500.0,0.00010527,2]
[422858616,1779534652000,-4000.0,0.00010529,2]
[422858615,1779534652000,-736.0,0.00010528,2]
[422858618,1779534652000,-46121.99950305,0.000107,2]
[422858617,1779534652000,-354.79,0.00010538,2]
[422858620,1779534652000,-620.85690103,0.00010801,2]
[422858619,1779534652000,-4000.0,0.00010779,2]
[422858623,1779534652000,-2616.400311,0.00010849,2]
[422858621,1779534652000,-2616.400311,0.00010849,2]
[422858624,1779534652000,-2616.400311,0.00010849,2]
[422858622,1779534652000,-2616.400311,0.00010849,2]
[422858625,1779534652000,-2616.400311,0.00010849,2]
[422858626,1779534652000,-2616.400311,0.00010849,2]
[422858661,1779534652000,-169.36,0.0001109,2]
[422858663,1779534652000,-219.42,0.00011096,2]
[422858657,1779534652000,-150.0,0.00010989,2]
[422858695,1779534652000,-721.0,0.00012004,5]
[422858694,1779534652000,-3215.04206956,0.00011992,2]
[422858698,1779534652000,-500.0,0.00012091,6]
[422858697,1779534652000,-300.0,0.00012086,2]
[422858696,1779534652000,-589.44,0.00012049,2]
[422858701,1779534652000,-990.0,0.00012092,2]
[422858702,1779534652000,-990.0,0.00012092,2]
[422858699,1779534652000,-248.58448134,0.00012091,2]
[422858700,1779534652000,-990.0,0.00012092,2]
[422858704,1779534652000,-990.0,0.00012092,2]
[422858703,1779534652000,-990.0,0.00012092,2]
[422858705,1779534652000,-990.0,0.00012092,2]
[422858706,1779534652000,-990.0,0.00012092,2]
[422858692,1779534652000,-86119.95,0.00011975,2]
[422858708,1779534652000,-990.0,0.00012092,2]
[422858709,1779534652000,-990.0,0.00012092,2]
[422858710,1779534652000,-990.0,0.00012092,2]
[422858715,1779534652000,-990.0,0.00012092,2]
[422858713,1779534652000,-990.0,0.00012092,2]
[422858711,1779534652000,-990.0,0.00012092,2]
[422858714,1779534652000,-990.0,0.00012092,2]
[422858712,1779534652000,-990.0,0.00012092,2]
[422858717,1779534652000,-500.0,0.00012092,2]
[422858658,1779534652000,-152.0,0.00011,4]
[422858718,1779534652000,-500.0,0.00012092,2]
[422858720,1779534652000,-990.0,0.00012092,2]
[422858719,1779534652000,-262.52138871,0.00012092,2]
[422858721,1779534652000,-990.0,0.00012092,2]
[422858707,1779534652000,-990.0,0.00012092,2]
[422858693,1779534652000,-199.43891012,0.00011992,2]
[422858716,1779534652000,-990.0,0.00012092,2]
[422858691,1779534652000,-1762.61,0.00011975,2]
[422858690,1779534652000,-4230.81,0.00011975,2]
[422858660,1779534652000,-4000.0,0.0001103,2]
[422858662,1779534652000,-169.36,0.0001109,2]
[422858665,1779534652000,-1672.75403578,0.00011099,2]
[422858667,1779534652000,-1672.75403578,0.00011099,2]
[422858666,1779534652000,-1672.75403578,0.00011099,2]
[422858669,1779534652000,-5077.47442993,0.00011099,2]
[422858668,1779534652000,-1672.75403578,0.00011099,2]
[422858674,1779534652000,-312.22,0.00011157,2]
[422858671,1779534652000,-5077.47442992,0.00011099,2]
[422858673,1779534652000,-5077.47442992,0.00011099,2]
[422858670,1779534652000,-5077.47442992,0.00011099,2]
[422858672,1779534652000,-5077.47442992,0.00011099,2]
[422858675,1779534652000,-500.0,0.00011226,5]
[422858664,1779534652000,-1672.75403584,0.00011099,2]
[422858676,1779534652000,-300.0,0.0001128,2]
[422858677,1779534652000,-2000.0,0.00011301,2]
[422858686,1779534652000,-5077.47442992,0.00011838,2]
[422858687,1779534652000,-215.31523495,0.00011931,2]
[422858682,1779534652000,-200.0,0.00011524,2]
[422858685,1779534652000,-1672.75403578,0.00011838,2]
[422858689,1779534652000,-666.0,0.00011974,2]
[422858681,1779534652000,-1153.99,0.00011507,2]
[422858678,1779534652000,-500.0,0.00011315,2]
[422858683,1779534652000,-275.74040284,0.00011566,2]
[422858679,1779534652000,-1152.0,0.00011492,2]
[422858688,1779534652000,-300.0,0.00011974,2]
[422858680,1779534652000,-4609.0,0.00011492,2]
[422858684,1779534652000,-152.21,0.00011644,2]
[422858761,1779534653000,-1005.81778893,0.00012092,2]
[422858750,1779534653000,-500.0,0.00012092,2]
[422858754,1779534653000,-500.0,0.00012092,2]
[422858751,1779534653000,-990.0,0.00012092,2]
[422858752,1779534653000,-500.0,0.00012092,2]
[422858756,1779534653000,-500.0,0.00012092,2]
[422858755,1779534653000,-500.0,0.00012092,2]
[422858757,1779534653000,-500.0,0.00012092,2]
[422858758,1779534653000,-500.0,0.00012092,2]
[422858749,1779534653000,-226.18441098,0.00012092,2]
[422858753,1779534653000,-500.0,0.00012092,2]
[422858766,1779534653000,-1494.0,0.00012092,2]
[422858762,1779534653000,-1494.0,0.00012092,2]
[422858760,1779534653000,-161.14601318,0.00012092,2]
[422858763,1779534653000,-1494.0,0.00012092,2]
[422858764,1779534653000,-1494.0,0.00012092,2]
[422858765,1779534653000,-1494.0,0.00012092,2]
[422858767,1779534653000,-1494.0,0.00012092,2]
[422858768,1779534653000,-1494.0,0.00012092,2]
[422858769,1779534653000,-1494.0,0.00012092,2]
[422858770,1779534653000,-1494.0,0.00012092,2]
[422858748,1779534653000,-500.0,0.00012092,2]
[422858759,1779534653000,-500.0,0.00012092,2]
[422858747,1779534653000,-500.0,0.00012092,2]
[422858731,1779534653000,-500.0,0.00012092,2]
[422858743,1779534653000,-990.0,0.00012092,2]
[422858771,1779534653000,-1494.0,0.00012092,2]
[422858722,1779534653000,-500.0,0.00012092,2]
[422858727,1779534653000,-500.0,0.00012092,2]
[422858723,1779534653000,-500.0,0.00012092,2]
[422858728,1779534653000,-990.0,0.00012092,2]
[422858725,1779534653000,-500.0,0.00012092,2]
[422858726,1779534653000,-500.0,0.00012092,2]
[422858724,1779534653000,-500.0,0.00012092,2]
[422858729,1779534653000,-500.0,0.00012092,2]
[422858730,1779534653000,-500.0,0.00012092,2]
[422858732,1779534653000,-500.0,0.00012092,2]
[422858736,1779534653000,-990.0,0.00012092,2]
[422858733,1779534653000,-500.0,0.00012092,2]
[422858735,1779534653000,-500.0,0.00012092,2]
[422858734,1779534653000,-500.0,0.00012092,2]
[422858737,1779534653000,-500.0,0.00012092,2]
[422858739,1779534653000,-500.0,0.00012092,2]
[422858741,1779534653000,-500.0,0.00012092,2]
[422858742,1779534653000,-500.0,0.00012092,2]
[422858738,1779534653000,-505.7497438,0.00012092,2]
[422858740,1779534653000,-500.0,0.00012092,2]
[422858744,1779534653000,-500.0,0.00012092,2]
[422858745,1779534653000,-500.0,0.00012092,2]
[422858746,1779534653000,-500.0,0.00012092,2]
[422858776,1779534653000,-1494.0,0.00012092,2]
[422858816,1779534653000,-853.0,0.00012092,2]
[422858772,1779534653000,-1494.0,0.00012092,2]
[422858806,1779534653000,-500.0,0.00012092,2]
[422858808,1779534653000,-500.0,0.00012092,2]
[422858802,1779534653000,-500.0,0.00012092,2]
[422858803,1779534653000,-500.0,0.00012092,2]
[422858804,1779534653000,-500.0,0.00012092,2]
[422858805,1779534653000,-500.0,0.00012092,2]
[422858807,1779534653000,-500.0,0.00012092,2]
[422858810,1779534653000,-853.0,0.00012092,2]
[422858809,1779534653000,-628.0,0.00012092,2]
[422858811,1779534653000,-853.0,0.00012092,2]
[422858812,1779534653000,-853.0,0.00012092,2]
[422858815,1779534653000,-500.0,0.00012092,2]
[422858813,1779534653000,-853.0,0.00012092,2]
[422858814,1779534653000,-853.0,0.00012092,2]
[422858824,1779534653000,-500.0,0.00012092,2]
[422858818,1779534653000,-853.0,0.00012092,2]
[422858819,1779534653000,-292.52430018,0.00012092,2]
[422858820,1779534653000,-853.0,0.00012092,2]
[422858822,1779534653000,-853.0,0.00012092,2]
[422858821,1779534653000,-853.0,0.00012092,2]
[422858823,1779534653000,-853.0,0.00012092,2]
[422858825,1779534653000,-500.0,0.00012092,2]
[422858773,1779534653000,-1494.0,0.00012092,2]
[422858801,1779534653000,-500.0,0.00012092,2]
[422858800,1779534653000,-500.0,0.00012092,2]
[422858817,1779534653000,-500.0,0.00012092,2]
[422858797,1779534653000,-484.68457076,0.00012092,2]
[422858799,1779534653000,-621.98422306,0.00012092,2]
[422858775,1779534653000,-500.0,0.00012092,2]
[422858778,1779534653000,-1494.0,0.00012092,2]
[422858779,1779534653000,-1494.0,0.00012092,2]
[422858777,1779534653000,-566.44136017,0.00012092,2]
[422858780,1779534653000,-1494.0,0.00012092,2]
[422858774,1779534653000,-1494.0,0.00012092,2]
[422858783,1779534653000,-1494.0,0.00012092,2]
[422858785,1779534653000,-1494.0,0.00012092,2]
[422858784,1779534653000,-1494.0,0.00012092,2]
[422858781,1779534653000,-1494.0,0.00012092,2]
[422858782,1779534653000,-1494.0,0.00012092,2]
[422858793,1779534653000,-500.0,0.00012092,2]
[422858786,1779534653000,-1494.0,0.00012092,2]
[422858789,1779534653000,-500.0,0.00012092,2]
[422858788,1779534653000,-206.64800166,0.00012092,2]
[422858790,1779534653000,-500.0,0.00012092,2]
[422858791,1779534653000,-500.0,0.00012092,2]
[422858792,1779534653000,-500.0,0.00012092,2]
[422858794,1779534653000,-500.0,0.00012092,2]
[422858796,1779534653000,-500.0,0.00012092,2]
[422858795,1779534653000,-500.0,0.00012092,2]
[422858787,1779534653000,-1513.81162537,0.00012092,2]
[422858798,1779534653000,-500.0,0.00012092,2]
[422858866,1779534654000,-500.0,0.00012092,2]
[422858869,1779534654000,-150.0,0.00012092,2]
[422858858,1779534654000,-500.0,0.00012092,2]
[422858867,1779534654000,-150.0,0.00012092,2]
[422858868,1779534654000,-500.0,0.00012092,2]
[422858862,1779534654000,-500.0,0.00012092,2]
[422858860,1779534654000,-853.0,0.00012092,2]
[422858864,1779534654000,-500.0,0.00012092,2]
[422858865,1779534654000,-500.0,0.00012092,2]
[422858861,1779534654000,-150.0,0.00012092,2]
[422858859,1779534654000,-513.59619321,0.00012092,2]
[422858863,1779534654000,-500.0,0.00012092,2]
[422858870,1779534654000,-500.0,0.00012092,2]
[422858882,1779534654000,-865.11068258,0.00012092,2]
[422858872,1779534654000,-500.0,0.00012092,2]
[422858874,1779534654000,-500.0,0.00012092,2]
[422858875,1779534654000,-170.9314917,0.00012092,2]
[422858873,1779534654000,-500.0,0.00012092,2]
[422858876,1779534654000,-853.0,0.00012092,2]
[422858877,1779534654000,-500.0,0.00012092,2]
[422858878,1779534654000,-500.0,0.00012092,2]
[422858879,1779534654000,-500.0,0.00012092,2]
[422858880,1779534654000,-414.72722824,0.00012092,2]
[422858881,1779534654000,-853.0,0.00012092,2]
[422858883,1779534654000,-500.0,0.00012092,2]
[422858884,1779534654000,-500.0,0.00012092,2]
[422858856,1779534654000,-500.0,0.00012092,2]
[422858871,1779534654000,-246.10932154,0.00012092,2]
[422858854,1779534654000,-500.0,0.00012092,2]
[422858829,1779534654000,-853.0,0.00012092,2]
[422858855,1779534654000,-500.0,0.00012092,2]
[422858826,1779534654000,-853.0,0.00012092,2]
[422858827,1779534654000,-500.0,0.00012092,2]
[422858830,1779534654000,-500.0,0.00012092,2]
[422858828,1779534654000,-500.0,0.00012092,2]
[422858887,1779534654000,-500.0,0.00012092,2]
[422858831,1779534654000,-500.0,0.00012092,2]
[422858832,1779534654000,-500.0,0.00012092,2]
[422858833,1779534654000,-853.0,0.00012092,2]
[422858834,1779534654000,-500.0,0.00012092,2]
[422858844,1779534654000,-500.0,0.00012092,2]
[422858838,1779534654000,-853.0,0.00012092,2]
[422858840,1779534654000,-500.0,0.00012092,2]
[422858839,1779534654000,-853.0,0.00012092,2]
[422858836,1779534654000,-853.0,0.00012092,2]
[422858843,1779534654000,-500.0,0.00012092,2]
[422858835,1779534654000,-500.0,0.00012092,2]
[422858842,1779534654000,-500.0,0.00012092,2]
[422858837,1779534654000,-496.77049006,0.00012092,2]
[422858846,1779534654000,-853.0,0.00012092,2]
[422858845,1779534654000,-261.54571794,0.00012092,2]
[422858847,1779534654000,-853.0,0.00012092,2]
[422858848,1779534654000,-500.0,0.00012092,2]
[422858851,1779534654000,-500.0,0.00012092,2]
[422858850,1779534654000,-500.0,0.00012092,2]
[422858852,1779534654000,-500.0,0.00012092,2]
[422858849,1779534654000,-167.79790195,0.00012092,2]
[422858853,1779534654000,-500.0,0.00012092,2]
[422858857,1779534654000,-500.0,0.00012092,2]
[422858886,1779534654000,-500.0,0.00012092,2]
[422858841,1779534654000,-853.0,0.00012092,2]
[422858888,1779534654000,-500.0,0.00012092,2]
[422858921,1779534654000,-642.0,0.00012092,2]
[422858922,1779534654000,-150.0,0.00012092,2]
[422858929,1779534654000,-270.84985147,0.00012092,2]
[422858924,1779534654000,-500.0,0.00012092,2]
[422858923,1779534654000,-615.0,0.00012092,2]
[422858925,1779534654000,-500.0,0.00012092,2]
[422858930,1779534654000,-500.0,0.00012092,2]
[422858928,1779534654000,-500.0,0.00012092,2]
[422858926,1779534654000,-642.0,0.00012092,2]
[422858931,1779534654000,-642.0,0.00012092,2]
[422858932,1779534654000,-615.0,0.00012092,2]
[422858927,1779534654000,-615.0,0.00012092,2]
[422858933,1779534654000,-500.0,0.00012092,2]
[422858935,1779534654000,-642.0,0.00012092,2]
[422858941,1779534654000,-642.0,0.00012092,2]
[422858934,1779534654000,-332.66890927,0.00012092,2]
[422858938,1779534654000,-642.0,0.00012092,2]
[422858940,1779534654000,-500.0,0.00012092,2]
[422858944,1779534654000,-642.0,0.00012092,2]
[422858937,1779534654000,-500.0,0.00012092,2]
[422858943,1779534654000,-500.0,0.00012092,2]
[422858939,1779534654000,-615.0,0.00012092,2]
[422858936,1779534654000,-615.0,0.00012092,2]
[422858942,1779534654000,-615.0,0.00012092,2]
[422858945,1779534654000,-615.0,0.00012092,2]
[422858947,1779534654000,-642.0,0.00012092,2]
[422858889,1779534654000,-500.0,0.00012092,2]
[422858917,1779534654000,-500.0,0.00012092,2]
[422858916,1779534654000,-642.0,0.00012092,2]
[422858946,1779534654000,-503.93157258,0.00012092,2]
[422858919,1779534654000,-500.0,0.00012092,2]
[422858918,1779534654000,-150.0,0.00012092,2]
[422858890,1779534654000,-500.0,0.00012092,2]
[422858893,1779534654000,-500.0,0.00012092,2]
[422858885,1779534654000,-500.0,0.00012092,2]
[422858891,1779534654000,-500.0,0.00012092,2]
[422858894,1779534654000,-500.0,0.00012092,2]
[422858896,1779534654000,-500.0,0.00012092,2]
[422858895,1779534654000,-500.0,0.00012092,2]
[422858898,1779534654000,-569.87645658,0.00012092,2]
[422858897,1779534654000,-500.0,0.00012092,2]
[422858899,1779534654000,-500.0,0.00012092,2]
[422858901,1779534654000,-500.0,0.00012092,2]
[422858902,1779534654000,-500.0,0.00012092,2]
[422858904,1779534654000,-500.0,0.00012092,2]
[422858892,1779534654000,-500.0,0.00012092,2]
[422858905,1779534654000,-500.0,0.00012092,2]
[422858900,1779534654000,-500.0,0.00012092,2]
[422858914,1779534654000,-150.0,0.00012092,2]
[422858911,1779534654000,-500.0,0.00012092,2]
[422858920,1779534654000,-500.0,0.00012092,2]
[422858912,1779534654000,-500.0,0.00012092,2]
[422858909,1779534654000,-198.39653009,0.00012092,2]
[422858913,1779534654000,-500.0,0.00012092,2]
[422858910,1779534654000,-500.0,0.00012092,2]
[422858908,1779534654000,-500.0,0.00012092,2]
[422858903,1779534654000,-417.28066252,0.00012092,2]
[422858906,1779534654000,-150.0,0.00012092,2]
[422858907,1779534654000,-500.0,0.00012092,2]
[422858915,1779534654000,-500.0,0.00012092,2]
[422858987,1779534655000,-150.0,0.00012554,2]
[422858984,1779534655000,-152.21,0.00012329,2]
[422858989,1779534655000,-6060.0,0.00012554,2]
[422858983,1779534655000,-1034.7,0.00012329,2]
[422858980,1779534655000,-421.2,0.000121,2]
[422858982,1779534655000,-2000.0,0.00012329,2]
[422858991,1779534655000,-1672.75403578,0.00012603,2]
[422858981,1779534655000,-312.22,0.00012171,2]
[422858974,1779534655000,-615.0,0.00012092,2]
[422858985,1779534655000,-311.37104562,0.000125,2]
[422858978,1779534655000,-617.41851285,0.00012092,2]
[422858995,1779534655000,-500.0,0.00012892,7]
[422858990,1779534655000,-3635.0,0.00012554,2]
[422858986,1779534655000,-1271.0,0.00012554,2]
[422858992,1779534655000,-5077.47442992,0.00012603,2]
[422858993,1779534655000,-787.0,0.00012641,2]
[422858994,1779534655000,-6453.0,0.00012641,2]
[422858998,1779534655000,-308.0,0.00013,2]
[422858997,1779534655000,-315.0,0.00013,2]
[422858996,1779534655000,-1000.0,0.00013,2]
[422858999,1779534655000,-1000.0,0.00013082,2]
[422859000,1779534655000,-1700.0,0.00013082,2]
[422859001,1779534655000,-151.0,0.00013151,2]
[422858977,1779534655000,-642.0,0.00012092,2]
[422859002,1779534655000,-151.0,0.00013151,2]
[422858988,1779534655000,-1224.0,0.00012554,2]
[422858976,1779534655000,-615.0,0.00012092,2]
[422858961,1779534655000,-642.0,0.00012092,2]
[422858971,1779534655000,-642.0,0.00012092,2]
[422859003,1779534655000,-150.0,0.00013154,2]
[422858956,1779534655000,-615.0,0.00012092,2]
[422858948,1779534655000,-615.0,0.00012092,2]
[422858949,1779534655000,-615.0,0.00012092,2]
[422858955,1779534655000,-615.0,0.00012092,2]
[422858952,1779534655000,-615.0,0.00012092,2]
[422858950,1779534655000,-615.0,0.00012092,2]
[422858953,1779534655000,-642.0,0.00012092,2]
[422858951,1779534655000,-615.0,0.00012092,2]
[422858954,1779534655000,-615.0,0.00012092,2]
[422858957,1779534655000,-642.0,0.00012092,2]
[422858959,1779534655000,-642.0,0.00012092,2]
[422858975,1779534655000,-642.0,0.00012092,2]
[422858967,1779534655000,-642.0,0.00012092,2]
[422858962,1779534655000,-615.0,0.00012092,2]
[422858960,1779534655000,-642.0,0.00012092,2]
[422858958,1779534655000,-615.0,0.00012092,2]
[422858963,1779534655000,-642.0,0.00012092,2]
[422858965,1779534655000,-642.0,0.00012092,2]
[422858964,1779534655000,-642.0,0.00012092,2]
[422858968,1779534655000,-615.0,0.00012092,2]
[422858969,1779534655000,-642.0,0.00012092,2]
[422858972,1779534655000,-615.0,0.00012092,2]
[422858979,1779534655000,-660.07976925,0.00012092,2]
[422858970,1779534655000,-615.0,0.00012092,2]
[422858973,1779534655000,-642.0,0.00012092,2]
[422858966,1779534655000,-615.0,0.00012092,2]
[422859004,1779534655000,-150.0,0.00013154,2]
[422859020,1779534655000,-5800.0,0.00013537,2]
[422859007,1779534655000,-625.0,0.00013154,2]
[422859038,1779534655000,-500.0,0.00013698,2]
[422859042,1779534655000,-574.32140782,0.00013698,2]
[422859041,1779534655000,-500.0,0.00013698,2]
[422859040,1779534655000,-299.3113989,0.00013698,2]
[422859037,1779534655000,-592.0817962,0.00013698,2]
[422859044,1779534655000,-500.0,0.00013698,2]
[422859045,1779534655000,-500.0,0.00013698,2]
[422859046,1779534655000,-500.0,0.00013698,2]
[422859047,1779534655000,-500.0,0.00013698,2]
[422859043,1779534655000,-501.157632,0.00013698,2]
[422859005,1779534655000,-150.0,0.00013154,2]
[422859050,1779534655000,-500.0,0.00013698,2]
[422859060,1779534655000,-308.96,0.00014,2]
[422859061,1779534655000,-308.96,0.00014,2]
[422859049,1779534655000,-500.0,0.00013698,2]
[422859051,1779534655000,-500.0,0.00013698,2]
[422859052,1779534655000,-166.66,0.00013699,2]
[422859053,1779534655000,-200.0,0.00013699,2]
[422859059,1779534655000,-308.96,0.00014,2]
[422859057,1779534655000,-166.66,0.00013973,2]
[422859056,1779534655000,-2181.0,0.00013905,2]
[422859054,1779534655000,-2000.0,0.00013699,7]
[422859055,1779534655000,-166.66,0.00013836,2]
[422859058,1779534655000,-9080.12249418,0.0001399,2]
[422859062,1779534655000,-308.96,0.00014,2]
[422859039,1779534655000,-500.0,0.00013698,2]
[422859036,1779534655000,-202.44477508,0.00013698,2]
[422859048,1779534655000,-500.0,0.00013698,2]
[422859033,1779534655000,-500.0,0.00013698,2]
[422859035,1779534655000,-500.0,0.00013698,2]
[422859008,1779534655000,-3546.0,0.00013154,2]
[422859009,1779534655000,-945.348,0.00013154,2]
[422859006,1779534655000,-1355.0,0.00013154,2]
[422859011,1779534655000,-1672.75403578,0.00013369,2]
[422859010,1779534655000,-500.0,0.00013233,2]
[422859021,1779534655000,-374.2529762,0.00013698,2]
[422859012,1779534655000,-340.0,0.0001337,2]
[422859015,1779534655000,-705.07876991,0.000135,2]
[422859018,1779534655000,-173449.0502969,0.00013505,2]
[422859017,1779534655000,-88445.2726832,0.00013504,2]
[422859014,1779534655000,-589.44,0.00013495,2]
[422859016,1779534655000,-1321.766061,0.00013504,2]
[422859013,1779534655000,-3215.04206956,0.00013446,2]
[422859022,1779534655000,-500.0,0.00013698,2]
[422859019,1779534655000,-5800.0,0.00013529,2]